[Event "*** Titled Tuesday Blitz"]
[Site "Chess.com"]
[Date "2019.03.05"]
[Round "3"]
[White "Chessialist"]
[Black "MITerryble"]
[Result "0-1"]
[WhiteElo "2500"]
[BlackElo "2802"]
[TimeControl "180+2"]
[EndTime "13:42:03 PST"]
[Termination "MITerryble won by resignation"]

1. e4 {[%clk 0:03:01.9]} 1... e6 {[%clk 0:03:01]} 2. Qe2 {[%clk 0:02:55.8]} 2...
c5 {[%clk 0:03:01.8]} 3. d3 {[%clk 0:02:57]} 3... Nc6 {[%clk 0:03:03.1]} 4. Nf3
{[%clk 0:02:58.6]} 4... g6 {[%clk 0:03:04.5]} 5. g3 {[%clk 0:03:00.2]} 5... Bg7
{[%clk 0:03:05.9]} 6. Bg2 {[%clk 0:03:01.9]} 6... Nge7 {[%clk 0:03:07.3]} 7. O-O
{[%clk 0:03:03.5]} 7... O-O {[%clk 0:03:08.5]} 8. c3 {[%clk 0:03:04.2]} 8... d6
{[%clk 0:03:09.7]} 9. Rd1 {[%clk 0:03:04.5]} 9... Rb8 {[%clk 0:03:11]} 10. a4
{[%clk 0:03:03.8]} 10... a6 {[%clk 0:03:11.8]} 11. Nbd2 {[%clk 0:03:05]} 11...
b5 {[%clk 0:03:12.8]} 12. axb5 {[%clk 0:03:05.9]} 12... axb5 {[%clk 0:03:14.7]}
13. Nf1 {[%clk 0:03:03.4]} 13... b4 {[%clk 0:03:15.8]} 14. c4 {[%clk 0:03:04.4]}
14... Bb7 {[%clk 0:03:10]} 15. h4 {[%clk 0:03:04]} 15... h6 {[%clk 0:03:10.4]}
16. N3h2 {[%clk 0:03:03.2]} 16... Nd4 {[%clk 0:03:10]} 17. Qg4 {[%clk
0:02:48.5]} 17... f5 {[%clk 0:03:09.7]} 18. Qh3 {[%clk 0:02:46.3]} 18... Ne2+
{[%clk 0:03:05.2]} 19. Kh1 {[%clk 0:02:47.2]} 19... Nxc1 {[%clk 0:03:06.5]} 20.
Raxc1 {[%clk 0:02:47.6]} 20... Bxb2 {[%clk 0:03:07.9]} 21. Rb1 {[%clk
0:02:48.8]} 21... Bg7 {[%clk 0:03:03.9]} 22. exf5 {[%clk 0:02:46.9]} 22... Nxf5
{[%clk 0:02:55]} 23. Ng4 {[%clk 0:02:28.7]} 23... Qd7 {[%clk 0:02:26.7]} 24. Rd2
{[%clk 0:02:17]} 24... Nd4 {[%clk 0:02:23.5]} 25. Nfe3 {[%clk 0:02:03.3]} 25...
Nf3 {[%clk 0:02:13.4]} 26. Re2 {[%clk 0:01:53.7]} 26... Qf7 {[%clk 0:01:54]} 27.
Nh2 {[%clk 0:01:45.8]} 27... Nd4 {[%clk 0:01:54.8]} 28. Rd2 {[%clk 0:01:46.6]}
28... Ra8 {[%clk 0:01:51.7]} 29. f4 {[%clk 0:01:41]} 29... b3 {[%clk 0:01:48.1]}
30. Bxb7 {[%clk 0:01:37.1]} 30... Qxb7+ {[%clk 0:01:48.3]} 31. Qg2 {[%clk
0:01:39]} 31... Qxg2+ {[%clk 0:01:45.5]} 32. Kxg2 {[%clk 0:01:39.7]} 32... Ra2
{[%clk 0:01:45.5]} 33. Nhf1 {[%clk 0:01:36.5]} 33... Rfa8 {[%clk 0:01:41.6]} 34.
Kf2 {[%clk 0:01:28.2]} 34... Rxd2+ {[%clk 0:01:25]} 35. Nxd2 {[%clk 0:01:28.7]}
35... Ra2 {[%clk 0:01:26.9]} 36. Ke1 {[%clk 0:01:27.6]} 36... b2 {[%clk
0:01:16.1]} 37. Kd1 {[%clk 0:01:18.4]} 37... Ra1 {[%clk 0:01:13.8]} 38. Nc2
{[%clk 0:01:18.3]} 38... Nf5 {[%clk 0:01:07.2]} 39. g4 {[%clk 0:00:59.9]} 39...
Nxh4 {[%clk 0:01:04.9]} 40. Ke2 {[%clk 0:01:01.1]} 40... h5 {[%clk 0:01:02.3]}
41. gxh5 {[%clk 0:00:58.9]} 41... gxh5 {[%clk 0:01:04.2]} 42. d4 {[%clk
0:00:21.4]} 42... cxd4 {[%clk 0:00:55.3]} 43. Kd3 {[%clk 0:00:18.8]} 43... Rxb1
{[%clk 0:00:55.9]} 44. Nxb1 {[%clk 0:00:20.7]} 44... Ng6 {[%clk 0:00:46.9]} 45.
Nxd4 {[%clk 0:00:19.2]} 45... Nxf4+ {[%clk 0:00:46.1]} 46. Ke4 {[%clk
0:00:19.8]} 46... Bxd4 {[%clk 0:00:46.9]} 47. Kxd4 {[%clk 0:00:21.1]} 47... h4
{[%clk 0:00:47.6]} 0-1

[Event "*** Titled Tuesday Blitz"]
[Site "Chess.com"]
[Date "2019.03.05"]
[Round "3"]
[White "chessmaxusa"]
[Black "LukasHandler"]
[Result "1-0"]
[WhiteElo "2517"]
[BlackElo "2367"]
[TimeControl "180+2"]
[EndTime "13:42:04 PST"]
[Termination "chessmaxusa won by resignation"]

1. d4 {[%clk 0:03:01.9]} 1... Nf6 {[%clk 0:02:58.1]} 2. Nf3 {[%clk 0:03:02.7]}
2... d5 {[%clk 0:02:59.1]} 3. Bf4 {[%clk 0:03:04]} 3... c5 {[%clk 0:02:58.8]} 4.
e3 {[%clk 0:03:05.1]} 4... Qb6 {[%clk 0:02:55.1]} 5. Qc1 {[%clk 0:03:05.4]} 5...
c4 {[%clk 0:02:52.8]} 6. b3 {[%clk 0:03:00.3]} 6... cxb3 {[%clk 0:02:39.8]} 7.
axb3 {[%clk 0:03:01]} 7... Nc6 {[%clk 0:02:39.8]} 8. Qb2 {[%clk 0:02:56]} 8...
Bf5 {[%clk 0:02:37.5]} 9. c3 {[%clk 0:02:56.8]} 9... e6 {[%clk 0:02:36.7]} 10.
Nbd2 {[%clk 0:02:57]} 10... h6 {[%clk 0:02:37.3]} 11. h3 {[%clk 0:02:58.2]}
11... Be7 {[%clk 0:02:35]} 12. Be2 {[%clk 0:02:59.7]} 12... O-O {[%clk
0:02:35.9]} 13. O-O {[%clk 0:03:01.2]} 13... Rfc8 {[%clk 0:02:34.9]} 14. Rfc1
{[%clk 0:03:02.1]} 14... a5 {[%clk 0:02:34.8]} 15. Qa2 {[%clk 0:02:53.7]} 15...
Qd8 {[%clk 0:02:10.8]} 16. Qa4 {[%clk 0:02:47.3]} 16... Nd7 {[%clk 0:02:04]} 17.
Bb5 {[%clk 0:02:37.8]} 17... Nb6 {[%clk 0:01:58.2]} 18. Qa2 {[%clk 0:02:38.4]}
18... a4 {[%clk 0:01:42.4]} 19. bxa4 {[%clk 0:02:37.1]} 19... Na5 {[%clk
0:01:41.3]} 20. c4 {[%clk 0:02:26.3]} 20... dxc4 {[%clk 0:01:26.4]} 21. Nxc4
{[%clk 0:02:27.3]} 21... Nbxc4 {[%clk 0:01:25.8]} 22. Bxc4 {[%clk 0:02:28.1]}
22... Nxc4 {[%clk 0:01:15.9]} 23. Rxc4 {[%clk 0:02:28]} 23... Be4 {[%clk
0:01:15.9]} 24. Qe2 {[%clk 0:01:35.6]} 24... Bd5 {[%clk 0:01:05.2]} 25. Rxc8
{[%clk 0:01:32]} 25... Qxc8 {[%clk 0:01:06.1]} 26. Ne5 {[%clk 0:01:31.6]} 26...
Qc3 {[%clk 0:00:59.3]} 27. Qf1 {[%clk 0:01:20.9]} 27... Bf6 {[%clk 0:00:52.2]}
28. Nd7 {[%clk 0:01:19.7]} 28... Be7 {[%clk 0:00:50.9]} 29. Nb6 {[%clk
0:01:19.3]} 29... Ra6 {[%clk 0:00:49.1]} 30. Nxd5 {[%clk 0:01:20.2]} 30... exd5
{[%clk 0:00:51]} 31. Qb1 {[%clk 0:01:13.2]} 31... Bb4 {[%clk 0:00:46.5]} 32. Ra2
{[%clk 0:01:08.6]} 32... Rc6 {[%clk 0:00:44.3]} 33. Rb2 {[%clk 0:01:01.4]} 33...
Rc4 {[%clk 0:00:45.3]} 34. a5 {[%clk 0:00:55.2]} 34... g6 {[%clk 0:00:35.5]} 35.
Be5 {[%clk 0:00:51.2]} 35... h5 {[%clk 0:00:30.7]} 36. Kh2 {[%clk 0:00:46.7]}
36... Kh7 {[%clk 0:00:31.2]} 37. h4 {[%clk 0:00:47]} 37... Kh6 {[%clk
0:00:29.1]} 38. g3 {[%clk 0:00:47.7]} 38... Kh7 {[%clk 0:00:30]} 39. Kg2 {[%clk
0:00:48.8]} 39... Kg8 {[%clk 0:00:29.7]} 40. Ra2 {[%clk 0:00:44]} 40... Rc6
{[%clk 0:00:19.5]} 41. Ra4 {[%clk 0:00:43.3]} 41... Rc4 {[%clk 0:00:19.4]} 42.
a6 {[%clk 0:00:42.9]} 42... bxa6 {[%clk 0:00:20.6]} 43. Rxa6 {[%clk 0:00:43.7]}
43... Rc8 {[%clk 0:00:21.7]} 44. Rb6 {[%clk 0:00:43]} 44... Be7 {[%clk
0:00:22.2]} 45. Rb7 {[%clk 0:00:42.3]} 45... Bf8 {[%clk 0:00:22.5]} 46. Qb5
{[%clk 0:00:43.3]} 46... Qc4 {[%clk 0:00:22.3]} 47. Qd7 {[%clk 0:00:43.4]} 1-0

[Event "*** Titled Tuesday Blitz"]
[Site "Chess.com"]
[Date "2019.03.05"]
[Round "3"]
[White "fmshawnrl123"]
[Black "Didici"]
[Result "1-0"]
[WhiteElo "2582"]
[BlackElo "2557"]
[TimeControl "180+2"]
[EndTime "13:42:11 PST"]
[Termination "fmshawnrl123 won by resignation"]

1. e4 {[%clk 0:03:00.4]} 1... e5 {[%clk 0:02:55.5]} 2. Nf3 {[%clk 0:03:01]} 2...
Nc6 {[%clk 0:02:33.3]} 3. Bc4 {[%clk 0:03:01.4]} 3... Nf6 {[%clk 0:02:34]} 4.
Ng5 {[%clk 0:02:59.8]} 4... d5 {[%clk 0:02:34.6]} 5. exd5 {[%clk 0:03:01.7]}
5... Na5 {[%clk 0:02:36]} 6. Bb5+ {[%clk 0:03:02.2]} 6... c6 {[%clk 0:02:36]} 7.
dxc6 {[%clk 0:03:04.1]} 7... bxc6 {[%clk 0:02:37.6]} 8. Qf3 {[%clk 0:03:05.7]}
8... Rb8 {[%clk 0:02:38.1]} 9. Bd3 {[%clk 0:03:04.2]} 9... Be7 {[%clk
0:02:24.2]} 10. Nc3 {[%clk 0:03:04.1]} 10... Rb4 {[%clk 0:02:12]} 11. Nge4
{[%clk 0:02:59.9]} 11... Nxe4 {[%clk 0:01:42.2]} 12. Bxe4 {[%clk 0:02:46.1]}
12... O-O {[%clk 0:01:29.8]} 13. g4 {[%clk 0:02:39]} 13... Nc4 {[%clk
0:01:13.9]} 14. a3 {[%clk 0:02:31.6]} 14... Rxb2 {[%clk 0:01:04.6]} 15. Bd3
{[%clk 0:02:02.5]} 15... Rb6 {[%clk 0:00:08.2]} 16. Bxc4 {[%clk 0:02:02.1]}
16... Kh8 {[%clk 0:00:08.2]} 17. Bd3 {[%clk 0:02:00.6]} 17... c5 {[%clk
0:00:07.8]} 18. Rb1 {[%clk 0:01:46.6]} 18... f5 {[%clk 0:00:07.5]} 19. Rxb6
{[%clk 0:01:42.4]} 19... fxg4 {[%clk 0:00:06.1]} 20. Qe4 {[%clk 0:01:23]} 20...
Bf5 {[%clk 0:00:06.8]} 21. Qd5 {[%clk 0:01:20.4]} 21... Qxb6 {[%clk 0:00:06.3]}
22. Bxf5 {[%clk 0:01:19.8]} 22... Rxf5 {[%clk 0:00:08.2]} 23. O-O {[%clk
0:01:16.4]} 23... Qf6 {[%clk 0:00:08.3]} 24. Qg2 {[%clk 0:01:14.4]} 24... h5
{[%clk 0:00:08.8]} 25. Ne4 {[%clk 0:01:11.6]} 25... Qf7 {[%clk 0:00:09.2]} 26.
d3 {[%clk 0:01:12.4]} 26... Rf3 {[%clk 0:00:10.4]} 27. Bg5 {[%clk 0:01:11.4]}
27... Kh7 {[%clk 0:00:08.4]} 28. Bxe7 {[%clk 0:01:10.9]} 28... Qxe7 {[%clk
0:00:10.3]} 29. Kh1 {[%clk 0:01:06.1]} 29... Kh6 {[%clk 0:00:11.4]} 30. Nd2
{[%clk 0:01:05.2]} 30... Rf4 {[%clk 0:00:12]} 31. f3 {[%clk 0:01:06.1]} 31...
gxf3 {[%clk 0:00:11.4]} 32. Rxf3 {[%clk 0:01:05.6]} 32... Qf6 {[%clk 0:00:12.3]}
33. Rxf4 {[%clk 0:00:59.8]} 33... Qxf4 {[%clk 0:00:13.8]} 34. h3 {[%clk
0:00:57]} 34... g5 {[%clk 0:00:13.4]} 35. Qc6+ {[%clk 0:00:49.7]} 35... Kh7
{[%clk 0:00:13.9]} 36. Qb7+ {[%clk 0:00:49.3]} 36... Kh6 {[%clk 0:00:14.4]} 37.
Qa6+ {[%clk 0:00:50.2]} 37... Kg7 {[%clk 0:00:15]} 38. Qxa7+ {[%clk 0:00:51]}
38... Kg6 {[%clk 0:00:16.3]} 39. Qb6+ {[%clk 0:00:51.6]} 39... Kf5 {[%clk
0:00:17.4]} 40. Ne4 {[%clk 0:00:35.6]} 40... Qf3+ {[%clk 0:00:14.3]} 41. Kh2
{[%clk 0:00:35]} 41... Qe2+ {[%clk 0:00:14.8]} 42. Kg1 {[%clk 0:00:34.7]} 42...
Qd1+ {[%clk 0:00:15]} 43. Kg2 {[%clk 0:00:35.1]} 43... Qxc2+ {[%clk 0:00:15.5]}
44. Nf2 {[%clk 0:00:36.6]} 44... Kf4 {[%clk 0:00:15.9]} 45. Qf6+ {[%clk
0:00:35.5]} 45... Ke3 {[%clk 0:00:17.2]} 46. Qxe5+ {[%clk 0:00:30.8]} 46... Kd2
{[%clk 0:00:18.1]} 47. Qxg5+ {[%clk 0:00:32]} 47... Ke1 {[%clk 0:00:18.1]} 48.
Qe3+ {[%clk 0:00:31.8]} 1-0

[Event "*** Titled Tuesday Blitz"]
[Site "Chess.com"]
[Date "2019.03.05"]
[Round "3"]
[White "severomorskij"]
[Black "Indianlad"]
[Result "1-0"]
[WhiteElo "2712"]
[BlackElo "2996"]
[TimeControl "180+2"]
[EndTime "13:42:13 PST"]
[Termination "severomorskij won by resignation"]

1. d4 {[%clk 0:03:01.9]} 1... Nf6 {[%clk 0:03:00]} 2. Bg5 {[%clk 0:03:02.4]}
2... Ne4 {[%clk 0:03:00.6]} 3. Bf4 {[%clk 0:03:03.4]} 3... d5 {[%clk 0:03:01.4]}
4. f3 {[%clk 0:03:04]} 4... Nf6 {[%clk 0:03:02.4]} 5. e4 {[%clk 0:03:05.3]} 5...
e6 {[%clk 0:03:03.3]} 6. e5 {[%clk 0:03:05.8]} 6... Nfd7 {[%clk 0:03:04.6]} 7.
Be3 {[%clk 0:03:06.9]} 7... c5 {[%clk 0:03:05.8]} 8. c3 {[%clk 0:03:08]} 8... f6
{[%clk 0:03:06.5]} 9. f4 {[%clk 0:03:08.7]} 9... Qb6 {[%clk 0:03:06.2]} 10. Qd2
{[%clk 0:03:08.1]} 10... Nc6 {[%clk 0:03:05.3]} 11. Nf3 {[%clk 0:03:08.7]} 11...
Be7 {[%clk 0:03:06]} 12. Bd3 {[%clk 0:03:04]} 12... fxe5 {[%clk 0:03:04]} 13.
dxe5 {[%clk 0:03:01.1]} 13... d4 {[%clk 0:03:02.7]} 14. Bf2 {[%clk 0:02:53.6]}
14... O-O {[%clk 0:02:51.4]} 15. O-O {[%clk 0:02:53]} 15... g5 {[%clk
0:02:27.8]} 16. Nxg5 {[%clk 0:02:17.2]} 16... Bxg5 {[%clk 0:02:28.4]} 17. fxg5
{[%clk 0:02:18.1]} 17... Ndxe5 {[%clk 0:02:29.6]} 18. Na3 {[%clk 0:01:54.6]}
18... Bd7 {[%clk 0:02:29]} 19. Nc4 {[%clk 0:01:19.1]} 19... Nxc4 {[%clk
0:02:28.3]} 20. Bxc4 {[%clk 0:01:20.6]} 20... Ne5 {[%clk 0:02:29.3]} 21. Be2
{[%clk 0:00:57.4]} 21... d3 {[%clk 0:02:07]} 22. Bxd3 {[%clk 0:00:50.1]} 22...
Ng4 {[%clk 0:01:27.2]} 23. Bxh7+ {[%clk 0:00:39.3]} 23... Kxh7 {[%clk
0:01:29.1]} 24. Qxd7+ {[%clk 0:00:40.1]} 24... Kg6 {[%clk 0:01:30.7]} 25. Rae1
{[%clk 0:00:34.3]} 25... Rae8 {[%clk 0:01:28.2]} 26. Qd3+ {[%clk 0:00:31.1]}
26... Kg7 {[%clk 0:01:29]} 27. Qe2 {[%clk 0:00:22.8]} 27... Nxf2 {[%clk
0:01:23.5]} 28. Rxf2 {[%clk 0:00:23.9]} 28... c4 {[%clk 0:01:24.7]} 29. Rf1
{[%clk 0:00:22.1]} 29... Rf5 {[%clk 0:01:24.6]} 30. Kh1 {[%clk 0:00:18.6]} 30...
Rxf2 {[%clk 0:01:19.4]} 31. Rxf2 {[%clk 0:00:19.3]} 31... Qc5 {[%clk 0:01:20.9]}
32. h4 {[%clk 0:00:19.8]} 32... Rd8 {[%clk 0:01:18.6]} 33. Qf3 {[%clk
0:00:18.2]} 33... Rd1+ {[%clk 0:01:15.3]} 34. Kh2 {[%clk 0:00:14.4]} 34... Qd6+
{[%clk 0:01:13.1]} 35. g3 {[%clk 0:00:15]} 35... Rd2 {[%clk 0:01:13.6]} 36. Qf6+
{[%clk 0:00:14.7]} 36... Kg8 {[%clk 0:01:14.7]} 37. Qf7+ {[%clk 0:00:15.6]}
37... Kh8 {[%clk 0:01:15.4]} 38. Qf6+ {[%clk 0:00:16.4]} 38... Kg8 {[%clk
0:01:15.9]} 39. Kh3 {[%clk 0:00:15]} 39... Rxf2 {[%clk 0:01:15.1]} 40. Qxf2
{[%clk 0:00:16.4]} 40... e5 {[%clk 0:01:15.9]} 41. Qf5 {[%clk 0:00:13.3]} 41...
Qd5 {[%clk 0:01:14.5]} 42. Qg6+ {[%clk 0:00:13.5]} 42... Kf8 {[%clk 0:01:14.5]}
43. Qf6+ {[%clk 0:00:14.5]} 43... Ke8 {[%clk 0:01:14.6]} 44. g6 {[%clk
0:00:13.2]} 44... Qd7+ {[%clk 0:01:01.9]} 45. Kg2 {[%clk 0:00:13.8]} 45... Qd2+
{[%clk 0:00:59.7]} 46. Qf2 {[%clk 0:00:14.4]} 46... Qd5+ {[%clk 0:01:00.9]} 47.
Kh2 {[%clk 0:00:15.3]} 47... Qd7 {[%clk 0:00:50.6]} 48. Qf7+ {[%clk 0:00:12.6]}
48... Qxf7 {[%clk 0:00:51.2]} 49. gxf7+ {[%clk 0:00:13.7]} 49... Kxf7 {[%clk
0:00:52.9]} 50. g4 {[%clk 0:00:15]} 1-0

[Event "*** Titled Tuesday Blitz"]
[Site "Chess.com"]
[Date "2019.03.05"]
[Round "3"]
[White "kingmonkey2006"]
[Black "Amirreza_p"]
[Result "1/2-1/2"]
[WhiteElo "2535"]
[BlackElo "2820"]
[TimeControl "180+2"]
[EndTime "13:42:19 PST"]
[Termination "Game drawn by repetition"]

1. b3 {[%clk 0:03:00.8]} 1... e5 {[%clk 0:03:00.7]} 2. Bb2 {[%clk 0:03:01]} 2...
Nc6 {[%clk 0:03:02.3]} 3. e3 {[%clk 0:03:02.3]} 3... d5 {[%clk 0:03:03.9]} 4.
Bb5 {[%clk 0:03:03.3]} 4... e4 {[%clk 0:03:05.3]} 5. Ne2 {[%clk 0:03:03.1]} 5...
Bd6 {[%clk 0:03:05.3]} 6. d3 {[%clk 0:03:04]} 6... Nf6 {[%clk 0:03:05.8]} 7.
dxe4 {[%clk 0:02:59.9]} 7... dxe4 {[%clk 0:03:06.7]} 8. Nd2 {[%clk 0:02:52.2]}
8... O-O {[%clk 0:03:05.7]} 9. Bxf6 {[%clk 0:02:50.4]} 9... Qxf6 {[%clk
0:03:07.6]} 10. Nxe4 {[%clk 0:02:50.3]} 10... Qg6 {[%clk 0:03:08.6]} 11. Nxd6
{[%clk 0:02:46]} 11... Rd8 {[%clk 0:02:47.8]} 12. Nf4 {[%clk 0:02:37.5]} 12...
Qh6 {[%clk 0:02:40.6]} 13. Bxc6 {[%clk 0:02:16.4]} 13... bxc6 {[%clk 0:02:41]}
14. O-O {[%clk 0:02:14.1]} 14... cxd6 {[%clk 0:02:38.1]} 15. Qe2 {[%clk
0:02:13.8]} 15... Re8 {[%clk 0:02:25.7]} 16. Qf3 {[%clk 0:02:13.8]} 16... d5
{[%clk 0:02:26]} 17. Rac1 {[%clk 0:02:08.8]} 17... a5 {[%clk 0:02:24.7]} 18. c4
{[%clk 0:02:01.9]} 18... Ba6 {[%clk 0:02:21.9]} 19. cxd5 {[%clk 0:01:51.5]}
19... Bxf1 {[%clk 0:02:20.7]} 20. Rxc6 {[%clk 0:01:51.8]} 20... Bxg2 {[%clk
0:02:11.8]} 21. Qxg2 {[%clk 0:01:37.6]} 21... Qh4 {[%clk 0:02:11.8]} 22. Qg3
{[%clk 0:01:32.6]} 22... Qxg3+ {[%clk 0:01:49.9]} 23. hxg3 {[%clk 0:01:33.5]}
23... Rec8 {[%clk 0:01:50.9]} 24. Rb6 {[%clk 0:01:34.8]} 24... a4 {[%clk
0:01:49.2]} 25. a3 {[%clk 0:01:21]} 25... Rc3 {[%clk 0:01:45.3]} 26. bxa4 {[%clk
0:01:17.1]} 26... Rxa3 {[%clk 0:01:43.9]} 27. Rb2 {[%clk 0:01:02.5]} 27... R3xa4
{[%clk 0:01:42.6]} 28. Kg2 {[%clk 0:00:56.3]} 28... Rd8 {[%clk 0:01:38.5]} 29.
Rd2 {[%clk 0:00:56.1]} 29... h6 {[%clk 0:01:35.4]} 30. Kf3 {[%clk 0:00:54.4]}
30... f5 {[%clk 0:01:17.3]} 31. Rd3 {[%clk 0:00:38.4]} 31... Rd6 {[%clk
0:01:14.7]} 32. Ne6 {[%clk 0:00:36.3]} 32... Re4 {[%clk 0:01:10.6]} 33. Nc7
{[%clk 0:00:33.8]} 33... g5 {[%clk 0:00:55]} 34. Nb5 {[%clk 0:00:34.9]} 34...
Rd8 {[%clk 0:00:53.3]} 35. d6 {[%clk 0:00:35.9]} 35... Kf7 {[%clk 0:00:52.2]}
36. Rd5 {[%clk 0:00:35.8]} 36... Kf6 {[%clk 0:00:50.2]} 37. Nd4 {[%clk
0:00:34.5]} 37... g4+ {[%clk 0:00:48.6]} 38. Kg2 {[%clk 0:00:35.4]} 38... Rxd4
{[%clk 0:00:23.2]} 39. exd4 {[%clk 0:00:37.3]} 39... h5 {[%clk 0:00:24.8]} 40.
Kf1 {[%clk 0:00:37.6]} 40... Ke6 {[%clk 0:00:23.7]} 41. Re5+ {[%clk 0:00:38.5]}
41... Kf6 {[%clk 0:00:25.2]} 42. Rd5 {[%clk 0:00:39.8]} 42... Ke6 {[%clk
0:00:26.4]} 43. Re5+ {[%clk 0:00:40.9]} 43... Kf6 {[%clk 0:00:27.7]} 44. Rd5
{[%clk 0:00:42.1]} 44... Ke6 {[%clk 0:00:25.2]} 45. Re5+ {[%clk 0:00:43.2]}
45... Kf6 {[%clk 0:00:26.3]} 46. Rd5 {[%clk 0:00:44.5]} 46... Ke6 {[%clk
0:00:22.2]} 47. Re5+ {[%clk 0:00:45.4]} 47... Kf6 {[%clk 0:00:23.5]} 48. Rd5
{[%clk 0:00:40.7]} 1/2-1/2

[Event "*** Titled Tuesday Blitz"]
[Site "Chess.com"]
[Date "2019.03.05"]
[Round "3"]
[White "Tiqr777"]
[Black "Alexander_Donchenko"]
[Result "0-1"]
[WhiteElo "2493"]
[BlackElo "2735"]
[TimeControl "180+2"]
[EndTime "13:42:28 PST"]
[Termination "Alexander_Donchenko won by resignation"]

1. c4 {[%clk 0:03:01.9]} 1... b6 {[%clk 0:03:00.6]} 2. Nc3 {[%clk 0:03:02.2]}
2... Bb7 {[%clk 0:03:02]} 3. d4 {[%clk 0:03:03]} 3... e6 {[%clk 0:03:03.2]} 4.
a3 {[%clk 0:03:03.2]} 4... Nf6 {[%clk 0:03:04]} 5. Nf3 {[%clk 0:03:04.2]} 5...
d5 {[%clk 0:03:04.6]} 6. Bf4 {[%clk 0:03:05.3]} 6... Bd6 {[%clk 0:03:04.2]} 7.
Bxd6 {[%clk 0:03:05.8]} 7... cxd6 {[%clk 0:03:05.2]} 8. e3 {[%clk 0:03:04.1]}
8... O-O {[%clk 0:03:04.5]} 9. cxd5 {[%clk 0:03:05]} 9... Nxd5 {[%clk
0:03:05.4]} 10. Nxd5 {[%clk 0:03:05.6]} 10... Bxd5 {[%clk 0:03:07.3]} 11. Be2
{[%clk 0:03:07]} 11... Nd7 {[%clk 0:03:07.7]} 12. O-O {[%clk 0:03:08.3]} 12...
Nf6 {[%clk 0:03:07.6]} 13. Rc1 {[%clk 0:03:07.1]} 13... Qd7 {[%clk 0:03:07.7]}
14. Bc4 {[%clk 0:02:57.2]} 14... Bxf3 {[%clk 0:02:55.6]} 15. Qxf3 {[%clk
0:02:57.5]} 15... Rac8 {[%clk 0:02:52.2]} 16. Ba6 {[%clk 0:02:52.1]} 16... Rc7
{[%clk 0:02:47.3]} 17. Rxc7 {[%clk 0:02:39]} 17... Qxc7 {[%clk 0:02:49.2]} 18.
Qb7 {[%clk 0:02:40.5]} 18... Qxb7 {[%clk 0:02:23.3]} 19. Bxb7 {[%clk 0:02:41.1]}
19... Rb8 {[%clk 0:02:24.9]} 20. Ba6 {[%clk 0:02:41.7]} 20... Kf8 {[%clk
0:02:22.6]} 21. Rc1 {[%clk 0:02:43]} 21... Ne8 {[%clk 0:02:23.4]} 22. Bb5 {[%clk
0:02:39.2]} 22... Rd8 {[%clk 0:02:15.6]} 23. Bxe8 {[%clk 0:02:31.2]} 23... Kxe8
{[%clk 0:02:16.5]} 24. Rc7 {[%clk 0:02:31.7]} 24... Rd7 {[%clk 0:02:17.5]} 25.
Rc8+ {[%clk 0:02:12.9]} 25... Rd8 {[%clk 0:02:18.6]} 26. Rc7 {[%clk 0:02:12.7]}
26... Rd7 {[%clk 0:02:19.9]} 27. Rc8+ {[%clk 0:02:14]} 27... Ke7 {[%clk
0:02:21.4]} 28. Kf1 {[%clk 0:02:14.8]} 28... d5 {[%clk 0:02:22.6]} 29. Ke2
{[%clk 0:02:15]} 29... Kd6 {[%clk 0:02:23.9]} 30. Kd3 {[%clk 0:02:16]} 30... Rc7
{[%clk 0:02:25.1]} 31. Rxc7 {[%clk 0:02:16.6]} 31... Kxc7 {[%clk 0:02:27]} 32.
Kc3 {[%clk 0:02:15.9]} 32... h5 {[%clk 0:02:15.3]} 33. h3 {[%clk 0:02:13.3]}
33... h4 {[%clk 0:02:10.3]} 34. Kb4 {[%clk 0:02:11.8]} 34... g5 {[%clk
0:02:10.1]} 35. a4 {[%clk 0:02:06.3]} 35... Kc6 {[%clk 0:01:41.7]} 36. b3 {[%clk
0:02:03.2]} 36... f6 {[%clk 0:01:33.7]} 37. Kc3 {[%clk 0:01:48.7]} 37... e5
{[%clk 0:01:31.4]} 38. b4 {[%clk 0:01:20.5]} 38... Kd6 {[%clk 0:01:23.9]} 39.
Kd3 {[%clk 0:01:18.8]} 39... Ke6 {[%clk 0:01:22]} 40. dxe5 {[%clk 0:00:47.4]}
40... fxe5 {[%clk 0:01:16.9]} 41. f3 {[%clk 0:00:24.2]} 41... a5 {[%clk
0:01:11.6]} 42. Kc3 {[%clk 0:00:22]} 42... Kd6 {[%clk 0:01:08.8]} 43. Kb3 {[%clk
0:00:21.6]} 43... axb4 {[%clk 0:00:45.8]} 44. Kxb4 {[%clk 0:00:22.6]} 44... d4
{[%clk 0:00:47.4]} 45. e4 {[%clk 0:00:13.2]} 45... Kc6 {[%clk 0:00:45]} 46. Kc4
{[%clk 0:00:14.4]} 46... Kb7 {[%clk 0:00:45.6]} 47. Kb4 {[%clk 0:00:12.2]} 47...
Ka6 {[%clk 0:00:46.6]} 48. Kc4 {[%clk 0:00:13.2]} 48... Ka5 {[%clk 0:00:47.7]}
0-1